[Event "8th Ali Ipek Tournament 2020"]
[Site "Ankara"]
[Date "2020.03.07"]
[Round "4.18"]
[White "Ozturk, Ali"]
[Black "Ada, Isa"]
[Result "0-1"]
[ECO "C64"]
[WhiteElo "1590"]
[BlackElo "1366"]
[Annotator "NA RC"]
[PlyCount "97"]
[EventDate "2020.03.04"]
[EventType "swiss"]
[EventCountry "TUR"]
[SourceTitle "playchess.com"]
[Source "ChessBase"]
[SourceQuality "1"]
[TimeControl "5400+30"]

1. Nf3 {[%emt 0:03:30]} Nc6 {[%emt 0:00:30]} 2. e4 {[%emt 0:01:30]} e5 {[%emt 0:00:30]} 3. Bb5 {[%emt 0:02:30]} Bc5 {[%emt 0:01:30]} 4. c3 {[%emt 0:01:30]} Bb6 {[%emt 0:03:30]} 5. O-O {[%emt 0:03:30]} d6 {[%emt 0:00:30]} 6. h3 {[%emt 0:00:30]} a6 {[%emt 0:06:30]} 7. Ba4 {[%emt 0:00:30]} Bd7 {[%emt 0:00:30]} 8. d4 {[%emt 0:00:30]} exd4 {[%emt 0:01:30]} 9. cxd4 {[%emt 0:00:30]} Qe7 {[%emt 0:04:30]} 10. Nc3 {[%emt 0:05:30]} Qd8 {[%emt 0:11:30]} 11. Bg5 {[%emt 0:10:30]} f6 {[%emt 0:02:30]} 12. Bh4 {[%emt 0:06:30]} g5 {[%emt 0:00:30]} 13. Nxg5 {[%emt 0:01:30]} fxg5 {[%emt 0:06:30]} 14. Qh5+ {[%emt 0:00:00]} Kf8 {[%emt 0:00:00]} 15. Bxg5 {[%emt 0:10:00]} Qe8 {[%emt 0:00:00]} 16. Bh6+ {[%emt 0:02:30]} Nxh6 {[%emt 0:04:30]} 17. Qxh6+ {[%emt 0:00:30]} Ke7 {[%emt 0:00:00]} 18. Nd5+ {[%emt 0:10:30]} Kd8 {[%emt 0:07:00]} 19. Qf6+ {[%emt 0:06:30]} Kc8 {[%emt 0:01:30]} 20. Nxb6+ {[%emt 0:00:00]} cxb6 {[%emt 0:00:30]} 21. d5 {[%emt 0:02:00]} Qe5 {[%emt 0:01:30]} 22. Qh4 {[%emt 0:05:30]} b5 {[%emt 0:12:30]} 23. dxc6 {[%emt 0:03:30]} bxc6 {[%emt 0:01:30]} 24. Bb3 {[%emt 0:01:30]} Kc7 {[%emt 0:04:30]} 25. Rab1 {[%emt 0:05:36]} Raf8 {[%emt 0:03:30]} 26. Rfc1 {[%emt 0:03:03]} h5 {[%emt 0:05:30]} 27. f3 {[%emt 0:02:07]} Rf4 {[%emt 0:01:12]} 28. Qf2 {[%emt 0:00:33]} Kb7 {[%emt 0:03:21]} 29. Ra1 {[%emt 0:01:48]} Rhf8 {[%emt 0:00:56]} 30. a4 {[%emt 0:00:40]} Rxe4 {[%emt 0:04:52]} 31. axb5 {[%emt 0:00:46]} Qxb5 {[%emt 0:00:55]} 32. Qd2 {[%emt 0:03:50]} Qb6+ {[%emt 0:02:21]} 33. Kh1 {[%emt 0:00:39]} Rd4 {[%emt 0:00:31]} 34. Qh6 {[%emt 0:02:10]} Qd8 {[%emt 0:02:27]} 35. Qxh5 {[%emt 0:01:23]} Rh4 {[%emt 0:00:39]} 36. Qg6 {[%emt 0:00:34]} Qe7 {[%emt 0:04:36]} 37. Qd3 {[%emt 0:00:50]} Ra8 {[%emt 0:00:42]} 38. Re1 {[%emt 0:00:51]} Qg5 {[%emt 0:00:43]} 39. Qe3 {[%emt 0:01:10]} Qg3 {[%emt 0:00:39]} 40. Be6 {[%emt 0:01:07]} Bxe6 {[%emt 0:00:24]} 41. Qxe6 {[%emt 0:00:30]} Rh7 {[%emt 0:00:30]} 42. Re3 {[%emt 0:00:40]} Rah8 {[%emt 0:00:39]} 43. Rb3+ {[%emt 0:00:25]} Kc7 {[%emt 0:00:17]} 44. f4 {[%emt 0:00:48]} Qxf4 {[%emt 0:00:56]} 45. Rxa6 {[%emt 0:01:02]} Qf1+ {[%emt 0:01:00]} 46. Kh2 {[%emt 0:00:04]} Qxa6 {[%emt 0:00:00]} 47. Rf3 {[%emt 0:00:32]} Qc8 {[%emt 0:00:42]} 48. Qe3 {[%emt 0:00:36]} c5 {[%emt 0:00:47]} 49. Qd3 {[%emt 0:00:44]} 0-1

[Event "8th Ali Ipek Tournament 2020"]
[Site "Ankara"]
[Date "2020.03.07"]
[Round "4.19"]
[White "Uzun, Anil"]
[Black "Kolsuz, Umut"]
[Result "0-1"]
[ECO "A13"]
[WhiteElo "1360"]
[BlackElo "1551"]
[Annotator "NA RC"]
[PlyCount "48"]
[EventDate "2020.03.04"]
[EventType "swiss"]
[EventCountry "TUR"]
[SourceTitle "playchess.com"]
[Source "ChessBase"]
[SourceQuality "1"]
[TimeControl "5400+30"]

1. Nf3 {[%emt 0:00:30]} Nf6 {[%emt 0:00:30]} 2. c4 {[%emt 0:00:00]} e6 {[%emt 0:00:30]} 3. b3 {[%emt 0:01:00]} d5 {[%emt 0:00:30]} 4. Bb2 {[%emt 0:00:00]} b6 {[%emt 0:01:30]} 5. e3 {[%emt 0:00:00]} Bb7 {[%emt 0:00:30]} 6. d4 {[%emt 0:00:30]} Ne4 {[%emt 0:03:30]} 7. Nbd2 {[%emt 0:01:30]} Nd7 {[%emt 0:01:30]} 8. g3 {[%emt 0:02:30]} Bb4 {[%emt 0:03:30]} 9. cxd5 {[%emt 0:04:30]} Bxd5 {[%emt 0:00:30]} 10. Rg1 {[%emt 0:00:30]} Qf6 {[%emt 0:00:30]} 11. Qe2 {[%emt 0:01:30]} Nc3 {[%emt 0:11:30]} 12. Bxc3 {[%emt 0:02:30]} Bxc3 {[%emt 0:00:30]} 13. O-O-O {[%emt 0:00:00]} a5 {[%emt 0:06:30]} 14. e4 {[%emt 0:00:00]} Bb7 {[%emt 0:00:30]} 15. Nb1 {[%emt 0:00:30]} Ba1 {[%emt 0:05:30]} 16. Ne1 {[%emt 0:02:30]} Bxd4 {[%emt 0:02:30]} 17. Nd3 {[%emt 0:01:30]} O-O {[%emt 0:04:30]} 18. Rg2 {[%emt 0:01:30]} Nc5 {[%emt 0:01:30]} 19. Nxc5 {[%emt 0:00:30]} Bxc5 {[%emt 0:00:30]} 20. h4 {[%emt 0:01:30]} a4 {[%emt 0:00:30]} 21. f4 {[%emt 0:01:30]} axb3 {[%emt 0:01:30]} 22. axb3 {[%emt 0:03:30]} Ra1 {[%emt 0:01:30]} 23. Qc2 {[%emt 0:00:30]} Bxe4 {[%emt 0:00:30]} 24. Bd3 {[%emt 0:02:30]} Bxg2 {[%emt 0:00:30]} 0-1

[Event "8th Ali Ipek Tournament 2020"]
[Site "Ankara"]
[Date "2020.03.07"]
[Round "4.20"]
[White "Gokdogan, Alperen"]
[Black "Tastan, Tuna Yasin"]
[Result "0-1"]
[ECO "C02"]
[WhiteElo "1305"]
[BlackElo "1535"]
[Annotator "NA RC"]
[PlyCount "108"]
[EventDate "2020.03.04"]
[EventType "swiss"]
[EventCountry "TUR"]
[SourceTitle "playchess.com"]
[Source "ChessBase"]
[SourceQuality "1"]
[TimeControl "5400+30"]

1. e4 {[%emt 0:00:30]} c5 {[%emt 0:04:30]} 2. c3 {[%emt 0:00:00]} e6 {[%emt 0:02:30]} 3. d4 {[%emt 0:00:00]} d5 {[%emt 0:00:30]} 4. e5 {[%emt 0:00:30]} Nc6 {[%emt 0:06:30]} 5. Nf3 {[%emt 0:00:30]} cxd4 {[%emt 0:00:30]} 6. cxd4 {[%emt 0:00:30]} Bb4+ {[%emt 0:00:30]} 7. Bd2 {[%emt 0:00:30]} Qb6 {[%emt 0:04:30]} 8. Na3 {[%emt 0:03:30]} Bxd2+ {[%emt 0:04:30]} 9. Qxd2 {[%emt 0:00:00]} a6 {[%emt 0:00:30]} 10. Bd3 {[%emt 0:02:00]} Bd7 {[%emt 0:02:30]} 11. Nc2 {[%emt 0:00:30]} Nge7 {[%emt 0:01:30]} 12. O-O {[%emt 0:00:30]} O-O {[%emt 0:03:30]} 13. Ne3 {[%emt 0:00:30]} Ng6 {[%emt 0:01:30]} 14. h4 {[%emt 0:07:30]} Qb4 {[%emt 0:09:30]} 15. Qd1 {[%emt 0:16:30]} Nf4 {[%emt 0:03:30]} 16. Bc2 {[%emt 0:05:30]} Nxd4 {[%emt 0:05:30]} 17. Nxd4 {[%emt 0:02:30]} Qxd4 {[%emt 0:00:30]} 18. Qf3 {[%emt 0:04:30]} Qxe5 {[%emt 0:12:30]} 19. g3 {[%emt 0:02:30]} Ng6 {[%emt 0:10:30]} 20. Rfe1 {[%emt 0:02:30]} Qf6 {[%emt 0:04:30]} 21. Qh5 {[%emt 0:01:30]} Rac8 {[%emt 0:01:04]} 22. Ng4 {[%emt 0:01:30]} Qxb2 {[%emt 0:01:03]} 23. Bd3 {[%emt 0:00:30]} Bb5 {[%emt 0:00:47]} 24. Reb1 {[%emt 0:01:30]} Qd4 {[%emt 0:00:56]} 25. Bxb5 {[%emt 0:03:30]} axb5 {[%emt 0:00:01]} 26. Qg5 {[%emt 0:00:30]} f5 {[%emt 0:02:13]} 27. Ne3 {[%emt 0:00:30]} f4 {[%emt 0:01:30]} 28. Qg4 {[%emt 0:01:30]} Qf6 {[%emt 0:01:49]} 29. Ng2 {[%emt 0:00:30]} fxg3 {[%emt 0:00:38]} 30. fxg3 {[%emt 0:00:30]} Qf5 {[%emt 0:02:20]} 31. Qxf5 {[%emt 0:00:30]} Rxf5 {[%emt 0:00:34]} 32. Rxb5 {[%emt 0:00:30]} Rf3 {[%emt 0:03:14]} 33. Kh2 {[%emt 0:00:30]} Rcc3 {[%emt 0:00:29]} 34. Rxb7 {[%emt 0:00:30]} Rxg3 {[%emt 0:00:44]} 35. Rb8+ {[%emt 0:00:30]} Kf7 {[%emt 0:00:43]} 36. Rb7+ {[%emt 0:00:30]} Kf6 {[%emt 0:01:19]} 37. a4 {[%emt 0:00:30]} Rh3+ {[%emt 0:01:48]} 38. Kg1 {[%emt 0:00:30]} Rcg3 {[%emt 0:02:25]} 39. Kf2 {[%emt 0:01:30]} Ra3 {[%emt 0:00:19]} 40. Rxa3 {[%emt 0:00:30]} Rxa3 {[%emt 0:00:30]} 41. Ra7 {[%emt 0:00:00]} Ne5 {[%emt 0:00:04]} 42. a5 {[%emt 0:00:00]} Nc6 {[%emt 0:00:15]} 43. Ra6 {[%emt 0:00:30]} Nxa5 {[%emt 0:00:56]} 44. Nf4 {[%emt 0:00:00]} Nc4 {[%emt 0:00:18]} 45. Nxd5+ {[%emt 0:01:00]} Ke5 {[%emt 0:01:20]} 46. Rxa3 {[%emt 0:00:00]} Nxa3 {[%emt 0:00:00]} 47. Ne3 {[%emt 0:00:00]} Nb5 {[%emt 0:00:06]} 48. Kf3 {[%emt 0:01:30]} Nd4+ {[%emt 0:00:31]} 49. Kf2 {[%emt 0:00:30]} Kf4 {[%emt 0:00:39]} 50. Ng2+ {[%emt 0:00:30]} Kg4 {[%emt 0:00:12]} 51. Ke3 {[%emt 0:00:30]} Nf5+ {[%emt 0:00:25]} 52. Ke4 {[%emt 0:00:30]} Nxh4 {[%emt 0:00:44]} 53. Nxh4 {[%emt 0:00:30]} Kxh4 {[%emt 0:00:30]} 54. Kf4 {[%emt 0:00:00]} g5+ {[%emt 0:00:11]} 0-1

[Event "8th Ali Ipek Tournament 2020"]
[Site "Ankara"]
[Date "2020.03.07"]
[Round "5.4"]
[White "Genc, Arda"]
[Black "Akin, Yagiz Cinar"]
[Result "1/2-1/2"]
[ECO "E14"]
[WhiteElo "1734"]
[BlackElo "1861"]
[Annotator "NA RC"]
[PlyCount "57"]
[EventDate "2020.03.04"]
[EventType "swiss"]
[EventCountry "TUR"]
[SourceTitle "playchess.com"]
[Source "ChessBase"]
[SourceQuality "1"]
[TimeControl "5400+30"]

1. d4 {[%emt 0:00:30]} f5 {[%emt 0:00:30]} 2. Nf3 {[%emt 0:00:00]} Nf6 {[%emt 0:00:00]} 3. e3 {[%emt 0:01:00]} e6 {[%emt 0:01:00]} 4. Bd3 {[%emt 0:00:30]} Be7 {[%emt 0:00:30]} 5. b3 {[%emt 0:00:30]} O-O $11 {[%emt 0:00:30]} 6. O-O {[%emt 0:00:30]} b6 {[%emt 0:00:30]} 7. c4 {[%emt 0:00:30]} Bb7 {[%emt 0:00:30]} 8. Nbd2 {[%emt 0:00:30]} Ne4 {[%emt 0:02:30]} 9. Qc2 {[%emt 0:01:30]} Nxd2 {[%emt 0:06:30]} 10. Nxd2 {[%emt 0:03:30]} Nc6 11. a3 {[%emt 0:03:30]} Bf6 {[%emt 0:05:00]} 12. Bb2 {[%emt 0:02:30]} Qe8 {[%emt 0:02:30]} 13. b4 {[%emt 0:08:30]} Qg6 {[%emt 0:08:30]} 14. f3 {[%emt 0:07:30]} Bg5 {[%emt 0:08:30]} 15. f4 {[%emt 0:13:30]} Bxf4 {[%emt 0:00:30]} 16. Rf3 {[%emt 0:12:30]} Bxe3+ {[%emt 0:15:30]} 17. Rxe3 {[%emt 0:00:30]} Nxd4 {[%emt 0:02:30]} 18. Rg3 {[%emt 0:00:30]} Qxg3 {[%emt 0:00:30]} 19. hxg3 {[%emt 0:00:30]} Nxc2 {[%emt 0:00:30]} 20. Bxc2 {[%emt 0:00:00]} a5 {[%emt 0:02:30]} 21. b5 {[%emt 0:00:00]} d6 {[%emt 0:00:30]} 22. Re1 {[%emt 0:01:30]} e5 {[%emt 0:01:30]} 23. Nf1 {[%emt 0:01:30]} f4 {[%emt 0:03:30]} 24. Be4 {[%emt 0:01:30]} Bxe4 {[%emt 0:00:00]} 25. Rxe4 {[%emt 0:00:30]} f3 {[%emt 0:04:00]} 26. Ne3 {[%emt 0:04:30]} Rf7 {[%emt 0:00:30]} 27. Nd5 {[%emt 0:03:30]} Raf8 {[%emt 0:09:30]} 28. Bc1 {[%emt 0:02:30]} fxg2 {[%emt 0:01:30]} 29. Kxg2 {[%emt 0:00:30]} 1/2-1/2

[Event "8th Ali Ipek Tournament 2020"]
[Site "Ankara"]
[Date "2020.03.07"]
[Round "5.5"]
[White "Oktem, Ege Tuna"]
[Black "Alkan, Ferman"]
[Result "0-1"]
[ECO "D02"]
[WhiteElo "1546"]
[BlackElo "1858"]
[Annotator "NA RC"]
[PlyCount "76"]
[EventDate "2020.03.04"]
[EventType "swiss"]
[EventCountry "TUR"]
[SourceTitle "playchess.com"]
[Source "ChessBase"]
[SourceQuality "1"]
[TimeControl "5400+30"]

1. d4 {[%emt 0:00:30]} Nf6 {[%emt 0:00:30]} 2. Nf3 {[%emt 0:00:00]} g6 {[%emt 0:00:30]} 3. Nbd2 {[%emt 0:02:00]} d5 {[%emt 0:00:30]} 4. e3 {[%emt 0:00:30]} Bg7 $11 {[%emt 0:01:30]} 5. b4 {[%emt 0:00:30]} O-O {[%emt 0:02:30]} 6. c4 {[%emt 0:01:30]} a5 {[%emt 0:02:30]} 7. b5 {[%emt 0:00:00]} a4 {[%emt 0:04:30]} 8. Be2 {[%emt 0:02:00]} Re8 {[%emt 0:07:30]} 9. O-O {[%emt 0:00:30]} Nbd7 {[%emt 0:02:30]} 10. c5 {[%emt 0:05:30]} c6 {[%emt 0:00:30]} 11. bxc6 {[%emt 0:02:30]} bxc6 {[%emt 0:00:30]} 12. Rb1 {[%emt 0:00:30]} e5 {[%emt 0:00:30]} 13. Nxe5 {[%emt 0:00:30]} Nxe5 {[%emt 0:00:30]} 14. dxe5 {[%emt 0:00:30]} Rxe5 {[%emt 0:00:00]} 15. Nc4 {[%emt 0:00:30]} Bf5 {[%emt 0:20:00]} 16. Nxe5 {[%emt 0:01:30]} Bxb1 {[%emt 0:00:00]} 17. Nxc6 {[%emt 0:02:30]} Qc7 {[%emt 0:00:00]} 18. Nd4 {[%emt 0:00:00]} Qxc5 {[%emt 0:04:30]} 19. a3 {[%emt 0:05:00]} Ne4 {[%emt 0:05:30]} 20. Bb2 {[%emt 0:02:30]} Ba2 {[%emt 0:00:30]} 21. Qa1 {[%emt 0:00:00]} Bc4 {[%emt 0:01:30]} 22. Bxc4 {[%emt 0:01:00]} dxc4 {[%emt 0:02:30]} 23. Ne6 {[%emt 0:05:30]} Bxb2 {[%emt 0:00:30]} 24. Qxb2 {[%emt 0:02:30]} fxe6 {[%emt 0:01:30]} 25. Qb7 {[%emt 0:00:30]} Qd5 {[%emt 0:00:00]} 26. Qb4 {[%emt 0:00:30]} c3 {[%emt 0:00:00]} 27. f3 {[%emt 0:01:30]} Nd2 {[%emt 0:00:30]} 28. Rc1 {[%emt 0:00:00]} Rc8 {[%emt 0:01:30]} 29. Qxa4 {[%emt 0:05:00]} Nb3 {[%emt 0:00:30]} 30. Qa6 {[%emt 0:01:30]} Ra8 {[%emt 0:00:30]} 31. Qf1 {[%emt 0:02:30]} Nxc1 {[%emt 0:00:30]} 32. Qxc1 {[%emt 0:00:30]} Qd2 {[%emt 0:00:00]} 33. Qf1 {[%emt 0:00:30]} c2 {[%emt 0:00:00]} 34. a4 {[%emt 0:00:00]} Qxe3+ {[%emt 0:00:00]} 35. Kh1 {[%emt 0:00:00]} c1=Q {[%emt 0:00:00]} 36. h3 {[%emt 0:00:00]} Qxf1+ {[%emt 0:00:30]} 37. Kh2 {[%emt 0:00:00]} Qf4+ {[%emt 0:00:30]} 38. g3 {[%emt 0:00:30]} Qd2# {[%emt 0:00:30]} 0-1

[Event "8th Ali Ipek Tournament 2020"]
[Site "Ankara"]
[Date "2020.03.07"]
[Round "5.7"]
[White "Ozates, Mert"]
[Black "Aral, Demir"]
[Result "1-0"]
[ECO "A01"]
[WhiteElo "1810"]
[BlackElo "1554"]
[Annotator "NA RC"]
[PlyCount "111"]
[EventDate "2020.03.04"]
[EventType "swiss"]
[EventCountry "TUR"]
[SourceTitle "playchess.com"]
[Source "ChessBase"]
[SourceQuality "1"]
[TimeControl "5400+30"]

1. b3 {[%emt 0:00:30]} e5 {[%emt 0:00:30]} 2. Bb2 {[%emt 0:00:00]} Nc6 {[%emt 0:00:30]} 3. e3 {[%emt 0:02:00]} Nf6 {[%emt 0:00:30]} 4. Bb5 {[%emt 0:00:30]} d6 {[%emt 0:00:30]} 5. d4 {[%emt 0:02:30]} exd4 {[%emt 0:04:30]} 6. exd4 {[%emt 0:01:30]} a6 {[%emt 0:03:30]} 7. Bxc6+ {[%emt 0:03:30]} bxc6 {[%emt 0:00:30]} 8. Nf3 {[%emt 0:00:30]} Bg4 {[%emt 0:02:30]} 9. O-O {[%emt 0:01:30]} d5 {[%emt 0:01:30]} 10. Re1+ {[%emt 0:15:30]} Be7 {[%emt 0:00:30]} 11. Ba3 {[%emt 0:04:30]} Be6 {[%emt 0:06:30]} 12. Bxe7 {[%emt 0:12:30]} Qxe7 {[%emt 0:02:30]} 13. Ng5 {[%emt 0:04:30]} h6 {[%emt 0:00:30]} 14. Nxe6 {[%emt 0:03:30]} fxe6 {[%emt 0:00:00]} 15. Nd2 {[%emt 0:06:30]} O-O {[%emt 0:01:00]} 16. Qe2 {[%emt 0:01:30]} Rfe8 {[%emt 0:02:30]} 17. Nf3 {[%emt 0:01:30]} Nd7 {[%emt 0:02:30]} 18. Ne5 {[%emt 0:02:30]} Nxe5 {[%emt 0:00:30]} 19. Qxe5 {[%emt 0:00:30]} c5 {[%emt 0:01:30]} 20. dxc5 {[%emt 0:06:30]} Qxc5 {[%emt 0:00:30]} 21. c4 {[%emt 0:00:00]} c6 {[%emt 0:07:30]} 22. Rac1 {[%emt 0:01:00]} Qf8 {[%emt 0:04:30]} 23. Qc7 {[%emt 0:07:30]} Rac8 {[%emt 0:07:30]} 24. Qd7 {[%emt 0:04:24]} Qf7 {[%emt 0:00:30]} 25. Qd6 {[%emt 0:01:14]} Qf6 {[%emt 0:07:30]} 26. cxd5 {[%emt 0:04:44]} exd5 {[%emt 0:01:30]} 27. Rxe8+ {[%emt 0:02:09]} Rxe8 {[%emt 0:00:00]} 28. Qxf6 {[%emt 0:00:28]} gxf6 {[%emt 0:01:00]} 29. Kf1 {[%emt 0:00:30]} Re6 {[%emt 0:00:00]} 30. Rc5 {[%emt 0:00:08]} d4 {[%emt 0:01:00]} 31. Rc4 {[%emt 0:00:52]} Kf7 {[%emt 0:05:30]} 32. Rxd4 {[%emt 0:00:30]} Ke7 {[%emt 0:00:00]} 33. Ra4 {[%emt 0:01:56]} c5 {[%emt 0:00:00]} 34. Ra5 {[%emt 0:00:30]} Rc6 {[%emt 0:00:30]} 35. Ke2 {[%emt 0:00:00]} Ke6 {[%emt 0:00:30]} 36. Kd3 {[%emt 0:00:02]} f5 {[%emt 0:01:30]} 37. Ra4 {[%emt 0:01:43]} Ke5 {[%emt 0:01:30]} 38. Rh4 {[%emt 0:01:12]} Rd6+ {[%emt 0:01:30]} 39. Ke3 {[%emt 0:01:04]} Rg6 {[%emt 0:01:30]} 40. g3 {[%emt 0:00:37]} Rf6 {[%emt 0:05:30]} 41. Ra4 {[%emt 0:02:02]} Rc6 {[%emt 0:00:00]} 42. Ra5 {[%emt 0:01:38]} Kf6 {[%emt 0:02:00]} 43. Ra4 {[%emt 0:00:35]} Ke5 {[%emt 0:00:00]} 44. h3 {[%emt 0:00:28]} Kf6 {[%emt 0:02:00]} 45. Rc4 {[%emt 0:00:31]} Ke5 {[%emt 0:01:30]} 46. b4 {[%emt 0:00:52]} Rb6 {[%emt 0:02:30]} 47. Rxc5+ {[%emt 0:00:34]} Ke6 {[%emt 0:00:30]} 48. a3 {[%emt 0:00:00]} Rd6 {[%emt 0:00:00]} 49. Ra5 {[%emt 0:01:39]} Rc6 {[%emt 0:00:00]} 50. Rc5 {[%emt 0:01:16]} Rd6 {[%emt 0:00:00]} 51. a4 {[%emt 0:00:19]} Kf6 {[%emt 0:01:00]} 52. b5 {[%emt 0:00:30]} axb5 {[%emt 0:00:30]} 53. axb5 {[%emt 0:00:20]} Rd7 {[%emt 0:00:00]} 54. b6 {[%emt 0:00:00]} Rd8 {[%emt 0:01:00]} 55. b7 {[%emt 0:00:23]} Rb8 {[%emt 0:00:30]} 56. Rb5 {[%emt 0:00:30]} 1-0

[Event "8th Ali Ipek Tournament 2020"]
[Site "Ankara"]
[Date "2020.03.07"]
[Round "5.8"]
[White "Kolsuz, Umut"]
[Black "Demirci, Murat"]
[Result "0-1"]
[ECO "C79"]
[WhiteElo "1551"]
[BlackElo "1821"]
[Annotator "NA RC"]
[PlyCount "95"]
[EventDate "2020.03.04"]
[EventType "swiss"]
[EventCountry "TUR"]
[SourceTitle "playchess.com"]
[Source "ChessBase"]
[SourceQuality "1"]
[TimeControl "5400+30"]

1. e4 {[%emt 0:00:30]} e5 {[%emt 0:00:30]} 2. Nf3 {[%emt 0:00:00]} Nc6 {[%emt 0:00:00]} 3. Bb5 {[%emt 0:00:00]} Nf6 {[%emt 0:00:00]} 4. O-O {[%emt 0:00:30]} d6 {[%emt 0:00:00]} 5. Re1 {[%emt 0:00:00]} a6 {[%emt 0:00:00]} 6. Ba4 {[%emt 0:00:00]} b5 {[%emt 0:00:30]} 7. Bb3 {[%emt 0:00:30]} Na5 {[%emt 0:02:30]} 8. d4 {[%emt 0:01:30]} Nxb3 {[%emt 0:01:30]} 9. axb3 {[%emt 0:00:00]} Bb7 {[%emt 0:00:00]} 10. d5 {[%emt 0:07:00]} Be7 {[%emt 0:00:00]} 11. Bd2 {[%emt 0:01:30]} O-O {[%emt 0:00:30]} 12. c4 {[%emt 0:00:30]} bxc4 {[%emt 0:04:30]} 13. bxc4 {[%emt 0:00:30]} Nd7 {[%emt 0:00:30]} 14. Qc2 {[%emt 0:02:30]} g6 {[%emt 0:00:30]} 15. Bh6 {[%emt 0:03:30]} Re8 {[%emt 0:00:30]} 16. Nbd2 {[%emt 0:01:30]} Bf8 {[%emt 0:03:30]} 17. Be3 {[%emt 0:01:30]} Nf6 {[%emt 0:03:30]} 18. Nb3 {[%emt 0:03:30]} c5 {[%emt 0:02:30]} 19. Na5 {[%emt 0:02:30]} Bc8 {[%emt 0:03:30]} 20. Nc6 {[%emt 0:06:30]} Qc7 {[%emt 0:05:30]} 21. b4 {[%emt 0:04:30]} cxb4 {[%emt 0:01:30]} 22. Nxb4 {[%emt 0:00:30]} a5 {[%emt 0:00:30]} 23. Nd2 {[%emt 0:01:30]} Bd7 {[%emt 0:02:30]} 24. Nd3 {[%emt 0:02:30]} Rec8 {[%emt 0:06:30]} 25. Reb1 {[%emt 0:02:30]} Rab8 {[%emt 0:00:00]} 26. f3 {[%emt 0:01:30]} a4 {[%emt 0:01:00]} 27. Rxb8 {[%emt 0:14:30]} Rxb8 {[%emt 0:00:30]} 28. Rb1 {[%emt 0:00:30]} Ra8 {[%emt 0:03:30]} 29. Rb6 {[%emt 0:03:30]} Bh6 {[%emt 0:04:30]} 30. Bf2 {[%emt 0:06:30]} Bxd2 {[%emt 0:00:30]} 31. Qxd2 {[%emt 0:00:00]} Qxc4 {[%emt 0:00:30]} 32. Nb4 {[%emt 0:09:00]} a3 {[%emt 0:02:30]} 33. Nc2 {[%emt 0:04:30]} a2 {[%emt 0:01:30]} 34. Na1 {[%emt 0:00:30]} Rc8 {[%emt 0:08:30]} 35. Be3 {[%emt 0:00:30]} Bb5 {[%emt 0:00:30]} 36. Qe1 {[%emt 0:00:30]} Nh5 {[%emt 0:05:30]} 37. g3 {[%emt 0:04:02]} f5 {[%emt 0:02:30]} 38. exf5 {[%emt 0:03:08]} Qxd5 {[%emt 0:05:30]} 39. fxg6 {[%emt 0:01:10]} hxg6 {[%emt 0:00:30]} 40. Kf2 {[%emt 0:01:12]} Rf8 {[%emt 0:00:30]} 41. Rxb5 {[%emt 0:07:28]} Qxb5 {[%emt 0:00:30]} 42. Qc3 {[%emt 0:00:19]} Qd5 {[%emt 0:00:30]} 43. Bg5 {[%emt 0:03:45]} Qc5+ {[%emt 0:04:30]} 44. Qxc5 {[%emt 0:01:01]} dxc5 {[%emt 0:00:30]} 45. Be7 {[%emt 0:00:30]} Rc8 {[%emt 0:02:30]} 46. Ke3 {[%emt 0:01:35]} Kf7 {[%emt 0:00:00]} 47. Bg5 {[%emt 0:00:02]} Rb8 {[%emt 0:00:00]} 48. Kd3 {[%emt 0:01:17]} 0-1

[Event "8th Ali Ipek Tournament 2020"]
[Site "Ankara"]
[Date "2020.03.07"]
[Round "5.9"]
[White "Alkan, Omer Tarik"]
[Black "Yildiz, Serdar Murat"]
[Result "1-0"]
[ECO "C02"]
[WhiteElo "1757"]
[BlackElo "1378"]
[Annotator "NA RC"]
[PlyCount "71"]
[EventDate "2020.03.04"]
[EventType "swiss"]
[EventCountry "TUR"]
[SourceTitle "playchess.com"]
[Source "ChessBase"]
[SourceQuality "1"]
[TimeControl "5400+30"]

1. e4 {[%emt 0:00:30]} e6 {[%emt 0:00:30]} 2. d4 {[%emt 0:00:30]} d5 {[%emt 0:00:00]} 3. e5 {[%emt 0:06:30]} c5 {[%emt 0:00:00]} 4. c3 {[%emt 0:00:00]} Nc6 {[%emt 0:00:30]} 5. Nf3 {[%emt 0:00:00]} Bd7 {[%emt 0:00:00]} 6. Bd3 {[%emt 0:00:00]} Qb6 {[%emt 0:01:00]} 7. O-O {[%emt 0:00:00]} cxd4 {[%emt 0:00:30]} 8. cxd4 {[%emt 0:00:30]} Nxd4 {[%emt 0:00:00]} 9. Nbd2 {[%emt 0:00:00]} Nxf3+ {[%emt 0:05:00]} 10. Nxf3 {[%emt 0:00:00]} Bc5 {[%emt 0:01:30]} 11. b4 {[%emt 0:00:00]} Qxb4 {[%emt 0:04:30]} 12. Rb1 {[%emt 0:00:00]} Qa4 {[%emt 0:01:30]} 13. Qxa4 {[%emt 0:00:30]} Bxa4 {[%emt 0:00:00]} 14. Rxb7 {[%emt 0:00:00]} Bb6 {[%emt 0:01:00]} 15. Ng5 {[%emt 0:02:00]} Nh6 {[%emt 0:13:30]} 16. Ba3 {[%emt 0:00:00]} Bd8 {[%emt 0:04:30]} 17. Nf3 {[%emt 0:04:00]} Bc6 {[%emt 0:00:30]} 18. Rc1 {[%emt 0:00:00]} Ba4 {[%emt 0:03:30]} 19. Nd4 {[%emt 0:01:00]} Bb6 {[%emt 0:11:30]} 20. Nc6 {[%emt 0:02:30]} Ng8 {[%emt 0:08:30]} 21. Nb8 {[%emt 0:03:30]} Bd8 {[%emt 0:02:30]} 22. Na6 {[%emt 0:03:30]} Nh6 {[%emt 0:09:30]} 23. Nc7+ {[%emt 0:03:30]} Bxc7 {[%emt 0:00:30]} 24. Rcxc7 {[%emt 0:00:30]} Ng4 {[%emt 0:00:30]} 25. Bb4 {[%emt 0:12:30]} a5 {[%emt 0:13:24]} 26. Bd6 {[%emt 0:03:30]} Nh6 {[%emt 0:01:55]} 27. h3 {[%emt 0:01:30]} Nf5 {[%emt 0:04:51]} 28. Rxf7 {[%emt 0:00:30]} Nxd6 {[%emt 0:01:05]} 29. exd6 {[%emt 0:00:30]} Kd8 {[%emt 0:01:04]} 30. Rxg7 {[%emt 0:01:30]} e5 {[%emt 0:02:28]} 31. Bb5 {[%emt 0:01:30]} Bxb5 {[%emt 0:01:12]} 32. Rxb5 {[%emt 0:00:30]} d4 {[%emt 0:00:55]} 33. Rxe5 {[%emt 0:00:30]} Rc8 {[%emt 0:00:00]} 34. Rxa5 {[%emt 0:00:30]} d3 {[%emt 0:00:46]} 35. Rd5 {[%emt 0:00:00]} Rc3 {[%emt 0:00:49]} 36. Rg3 {[%emt 0:00:00]} 1-0